bitfinex-derivatives/quotes_ETHF0:USTF0_20250103
["timestamp","ask_amount","ask_price","bid_price","bid_amount"]
[1735888152950,41.09092,3439.9,3439.8,0.29092]
[1735888153648,40.8,3439.9,3439.8,0.29092]
[1735888154050,0.29091,3440.0,3439.6,1.134]
[1735888154441,0.29091,3440.0,3439.9,0.29092]
[1735888154647,41.09091,3440.0,3439.9,0.29092]
[1735888155047,0.29091,3440.0,3439.9,0.29092]
[1735888155448,0.29092,3439.9,3439.8,0.29092]
[1735888155942,43.06768085,3440.1,3439.6,1.134]
[1735888156147,2.55859085,3440.1,3440.0,0.29091]
[1735888156349,2.55859085,3440.1,3439.9,0.29091]
[1735888156547,0.29091,3440.0,3439.9,0.29091]
[1735888157548,2.55859085,3440.1,3439.9,0.29091]
[1735888157742,2.26768085,3440.1,3439.6,5.69286087]
[1735888157951,0.29093,3439.9,3439.7,0.29093]
[1735888158252,0.29093,3439.9,3439.8,0.29093]
[1735888158453,0.29093,3439.8,3439.6,5.69286087]
[1735888158856,0.29093,3439.8,3439.7,0.29094]
[1735888159055,0.29093,3439.8,3439.7,4.55886087]
[1735888159556,0.29092,3439.9,3439.7,4.84979087]
[1735888159955,0.29093,3439.8,3439.7,4.84979087]
[1735888160456,0.29093,3439.8,3439.7,4.55886087]
[1735888161149,0.29093,3439.8,3439.7,4.84980087]
[1735888162049,0.29093,3439.8,3439.7,4.55886087]
[1735888163653,0.29093,3439.8,3439.7,5.68986087]
[1735888165253,0.29093,3439.8,3439.7,5.98080087]
[1735888165758,2.26768085,3439.9,3439.7,5.68986087]
[1735888165955,2.26768085,3439.9,3439.8,0.29093]
[1735888166657,3.40784862,3440.0,3439.9,0.29092]
[1735888167451,3.69875862,3440.0,3439.8,0.29092]
[1735888167658,3.69875862,3440.0,3439.7,5.68986087]
[1735888167659,3.40784862,3440.0,3439.9,0.29092]
[1735888167857,0.29091,3440.1,3439.9,4.99494109]
[1735888168262,2.27656335,3440.2,3439.9,4.70402109]
[1735888168459,0.2909,3440.1,3440.0,0.29091]
[1735888168761,0.2909,3440.1,3439.9,4.70402109]
[1735888168961,0.2909,3440.1,3439.9,4.99493109]
[1735888169162,0.2909,3440.1,3440.0,4.70402109]
[1735888171462,0.2909,3440.1,3440.0,4.99493109]
[1735888171760,0.2909,3440.1,3440.0,4.57490074]
[1735888172758,0.2909,3440.1,3439.9,7.15397792]
[1735888172961,0.29091,3440.0,3439.9,6.86306792]
[1735888173564,41.09091,3440.0,3439.9,6.86306792]
[1735888174365,41.09091,3440.0,3439.9,4.57420506]
[1735888175257,0.29091,3440.0,3439.9,4.57420506]
[1735888181665,1.30613973,3440.0,3439.9,2.47090506]
[1735888181872,1.30613973,3440.0,3439.9,1.76980506]
[1735888182070,41.09091,3440.0,3439.9,1.76980506]
[1735888182465,45.65964649,3440.0,3439.4,4.1193519]
[1735888182664,4.51397973,3439.5,3439.4,4.1193519]
[1735888182964,3.49875,3439.5,3439.4,4.1193519]
[1735888183371,4.51397973,3439.5,3439.4,4.1193519]
[1735888183871,4.65959787,3439.5,3438.8,1.131]
[1735888184068,0.291,3438.9,3438.8,1.42201]
[1735888184769,0.291,3439.0,3438.9,0.291]
[1735888184970,2.27500813,3439.3,3438.8,5.64861144]
[1735888185273,2.27500813,3439.3,3438.8,5.93962144]
[1735888185567,2.27500813,3439.3,3438.8,5.64861144]
[1735888185773,2.27500813,3439.3,3438.9,0.291]
[1735888185971,0.291,3439.0,3438.8,5.93962144]
[1735888186470,0.291,3438.9,3438.8,1.131]
[1735888186769,0.291,3438.9,3438.7,0.29102]
[1735888186976,5.51877774,3439.1,3438.5,9.05503053]
[1735888187174,0.29102,3438.7,3438.6,1.131]
[1735888187362,5.51877774,3439.1,3438.5,9.05503053]
[1735888187672,0.29103,3438.6,3438.5,9.05503053]
[1735888188066,2.31097774,3438.8,3438.3,1.131]
[1735888188067,43.11097774,3438.8,3438.3,1.131]
[1735888188267,0.29105,3438.5,3438.3,1.131]
[1735888188965,0.29103,3438.6,3438.3,1.42205]
[1735888189171,3.2078,3438.7,3438.3,1.131]
[1735888189471,3.49883,3438.7,3438.4,0.29104]
[1735888189870,3.2078,3438.7,3438.3,1.131]
[1735888190068,3.2078,3438.7,3438.6,0.29103]
[1735888195575,3.49882,3438.7,3438.5,0.29104]
[1735888197288,3.2078,3438.7,3438.5,0.29104]
[1735888197577,3.2078,3438.7,3438.6,0.29103]
[1735888200675,3.2078,3438.7,3437.6,12.26283053]
[1735888200979,2.31097774,3438.3,3438.2,0.29106]
[1735888201380,2.31097774,3438.3,3437.7,1.131]
[1735888201684,3.2078,3438.2,3437.7,1.131]
[1735888201878,3.49887,3438.2,3437.7,1.131]
[1735888202077,3.49887,3438.2,3438.0,0.29108]
[1735888202274,3.49887,3438.2,3437.2,3.2078]
[1735888202275,8.2078,3438.2,3437.2,9.05503053]
[1735888202476,2.31097774,3437.3,3437.2,9.05503053]
[1735888202681,2.31097774,3437.3,3437.2,9.34618053]
[1735888203075,2.31097774,3437.3,3437.2,9.05503053]
[1735888203275,2.60211774,3437.3,3437.2,9.05503053]
[1735888203684,2.31097774,3437.3,3437.2,9.05503053]
[1735888203885,2.31097774,3437.3,3437.2,9.34618053]
[1735888204382,2.31097774,3437.3,3437.2,0.29115]
[1735888205082,2.31097774,3437.6,3436.8,3.2078]
[1735888205283,2.31097774,3437.6,3436.9,1.131]
[1735888205485,0.29112,3437.5,3437.3,0.29113]
[1735888205685,2.60209774,3437.6,3437.3,0.29113]
[1735888205988,2.60209774,3437.6,3437.4,0.29113]
[1735888206382,2.60209774,3437.6,3437.3,0.29113]
[1735888206580,2.60209774,3437.6,3437.4,0.29113]
[1735888206985,2.60209774,3437.6,3437.3,0.29113]
[1735888207486,5.51877774,3437.6,3437.2,0.29114]
[1735888207689,0.29115,3437.2,3437.0,0.29116]
[1735888208183,2.60211774,3437.3,3436.9,1.131]
[1735888208583,0.29115,3437.2,3436.9,1.42217]
[1735888208784,0.29116,3437.1,3436.9,1.42217]
[1735888209182,2.60213774,3437.0,3436.9,1.131]
[1735888209386,2.31097774,3437.0,3436.9,1.131]
[1735888209988,2.31097774,3437.0,3436.9,1.42217]
[1735888210587,2.31097774,3437.0,3436.9,0.29117]
[1735888210788,2.31097774,3437.0,3435.7,9.05503053]
[1735888210789,0.29124,3436.2,3436.0,3.2078]
[1735888210997,3.2078,3436.3,3435.7,9.05503053]
[1735888211297,0.29127,3435.9,3435.7,9.05503053]
[1735888211591,40.8,3436.2,3435.9,0.29125]
[1735888211787,40.8,3436.2,3435.8,3.2078]
[1735888211988,40.8,3436.2,3436.1,0.29124]
[1735888212484,0.29121,3436.5,3436.0,0.29125]
[1735888212691,0.29121,3436.5,3435.8,3.2078]
[1735888212899,0.29122,3436.4,3435.9,0.29125]
[1735888213891,40.8,3436.5,3435.9,0.29125]
[1735888214094,0.29123,3436.3,3435.8,4.63107]
[1735888214394,40.8,3436.5,3435.8,4.3398]
[1735888214586,0.29123,3436.2,3435.6,0.29128]
[1735888214793,0.29125,3436.1,3435.6,0.29128]
[1735888214992,0.29125,3436.0,3435.4,4.3398]
[1735888215292,0.29125,3436.0,3435.5,0.29129]
[1735888215495,5.51877774,3436.3,3435.5,0.29129]
[1735888215683,5.51877774,3436.3,3435.4,4.3398]
[1735888215887,2.31097774,3436.0,3435.0,3.2078]
[1735888216084,2.31097774,3436.0,3435.0,4.3398]
[1735888216287,2.31097774,3435.7,3435.0,4.3398]
[1735888216588,0.29129,3435.6,3435.1,0.29133]
[1735888217092,0.29129,3435.5,3435.1,0.29132]
[1735888217403,2.31097774,3435.7,3435.0,4.63113]
[1735888217601,3.2078,3435.8,3435.2,0.29131]
[1735888217794,0.29129,3435.6,3435.3,0.29131]
[1735888218097,3.2078,3435.8,3435.1,2.31097774]
[1735888218299,3.2078,3435.8,3435.4,0.00216168]
[1735888218491,3.2078,3435.8,3435.7,0.29127]
[1735888218686,0.29126,3436.0,3435.7,0.29127]
[1735888218896,5.51877774,3436.3,3435.4,0.00216168]
[1735888219092,0.29123,3436.2,3435.9,0.29126]
[1735888219493,5.51877774,3436.3,3435.4,0.00216168]
[1735888219703,0.29124,3436.1,3435.8,0.29126]
[1735888219998,5.51877774,3436.3,3435.9,0.29125]
[1735888220197,0.29123,3436.2,3435.9,0.29125]
[1735888221793,3.49903,3436.3,3436.0,0.29125]
[1735888222195,0.29123,3436.2,3436.0,0.29125]
[1735888222390,0.29123,3436.2,3435.5,4.3398]
[1735888222590,0.29123,3436.2,3435.9,0.29125]
[1735888222999,3.2078,3436.3,3435.5,4.3398]
[1735888223200,3.49903,3436.3,3436.0,0.29124]
[1735888223601,0.29123,3436.2,3435.5,4.3398]
[1735888223998,0.29123,3436.2,3436.0,0.29125]
[1735888224302,3.2078,3436.3,3435.5,4.3398]
[1735888224504,0.29124,3436.1,3435.9,0.29126]
[1735888225097,3.2078,3436.3,3435.5,4.3398]
[1735888225299,0.29125,3436.0,3435.8,0.29126]
[1735888225604,0.29125,3436.1,3435.8,0.29126]
[1735888225806,0.29125,3436.0,3435.8,0.29126]
[1735888226902,0.29125,3436.0,3435.5,3.2078]
[1735888227100,0.29125,3436.0,3435.6,1.154]
[1735888227309,3.2078,3436.3,3435.8,0.29126]
[1735888227501,0.29123,3436.2,3436.0,0.29125]
[1735888227701,0.29123,3436.2,3435.6,1.154]
[1735888227905,0.29124,3436.1,3435.9,0.29125]
[1735888228395,5.51877774,3436.3,3435.5,3.2078]
[1735888228599,3.2078,3435.9,3435.4,0.00216168]
[1735888228808,3.49906,3435.9,3435.7,0.29127]
[1735888229106,3.2078,3435.9,3435.5,2.31097774]
[1735888229405,3.49902,3436.4,3436.2,0.29123]
[1735888229609,44.0078,3436.4,3436.3,0.29122]
[1735888229903,40.8,3436.4,3436.3,0.29122]
[1735888230211,41.09122,3436.4,3436.2,0.29123]
[1735888230401,40.8,3436.4,3436.3,0.29122]
[1735888230705,40.8,3436.4,3435.7,3.2078]
[1735888230706,40.8,3436.4,3435.7,4.3618]
[1735888230907,40.8,3436.4,3436.3,0.29122]
[1735888231605,41.09122,3436.4,3436.3,0.29122]
[1735888232007,40.8,3436.4,3436.3,0.29122]
[1735888234313,3.2078,3436.8,3435.8,2.31097774]
[1735888234611,3.49899,3436.8,3436.6,0.29119]
[1735888234811,40.8,3436.7,3436.6,0.29119]
[1735888235003,41.09119,3436.7,3436.6,0.29119]
[1735888235506,0.29119,3436.7,3436.6,0.29119]
[1735888235707,3.2078,3437.3,3436.5,3.93583]
[1735888235910,40.8,3437.2,3437.1,0.29116]
[1735888236209,3.2078,3437.7,3436.9,3.2078]
[1735888236510,3.2078,3437.7,3437.6,0.29111]
[1735888236904,3.2078,3437.7,3437.3,1.154]
[1735888237409,3.49891,3437.7,3437.4,0.29113]
[1735888237604,3.49891,3437.7,3437.3,1.154]
[1735888237605,0.29112,3437.6,3437.3,1.154]
[1735888237812,0.29112,3437.6,3437.3,1.44514]
[1735888238009,0.29113,3437.5,3437.3,1.154]
[1735888238208,0.29113,3437.4,3437.3,1.154]
[1735888238409,40.8,3437.6,3437.0,1.154]
[1735888238608,40.8,3437.6,3437.2,0.29115]
[1735888238916,0.29113,3437.5,3437.3,0.29114]
[1735888239316,40.8,3437.6,3437.0,1.154]
[1735888239511,0.29113,3437.4,3437.1,0.29115]
[1735888239814,40.8,3437.6,3437.0,1.154]
[1735888240003,0.29115,3437.2,3437.0,1.154]
[1735888240408,0.29116,3437.1,3436.9,4.65297]
[1735888240609,0.29115,3437.2,3436.9,4.65297]
[1735888241012,0.29115,3437.2,3437.0,0.29116]
[1735888241918,43.11097774,3437.6,3437.0,0.29116]
[1735888242518,43.11097774,3437.6,3436.9,3.2078]
[1735888242709,0.29114,3437.3,3437.1,0.29116]
[1735888243217,43.11097774,3437.6,3437.1,0.29116]
[1735888243411,0.29114,3437.3,3437.0,0.29116]
[1735888243614,0.29115,3437.2,3436.9,3.49897]
[1735888244415,0.29115,3437.2,3436.9,3.2078]
[1735888244616,0.29115,3437.2,3437.0,0.29116]
[1735888245407,0.29115,3437.2,3436.7,4.3618]
[1735888245615,0.29115,3437.2,3437.0,0.29116]
[1735888247313,3.2078,3437.5,3436.9,0.29117]
[1735888247514,3.2078,3437.5,3437.0,0.29116]
[1735888247718,3.2078,3437.5,3436.7,4.3608]
[1735888247920,3.2078,3437.5,3436.9,0.29117]
[1735888248119,3.2078,3437.5,3436.7,4.3608]
[1735888248525,0.29116,3437.2,3436.9,0.29117]
[1735888248715,3.2078,3437.1,3436.4,0.29121]
[1735888248908,3.2078,3436.7,3436.2,6.83384795]
[1735888249222,0.29122,3436.3,3436.2,6.83384795]
[1735888249417,3.49902,3436.3,3436.2,6.83384795]
[1735888249620,44.29902,3436.3,3436.2,6.83384795]
[1735888250223,0.29127,3435.8,3435.6,1.44428]
[1735888250811,44.0078,3436.3,3435.6,1.153]
[1735888251016,0.29126,3435.9,3435.7,0.29127]
[1735888251219,0.29123,3436.2,3435.6,1.44428]
[1735888251417,44.0078,3436.3,3435.6,1.153]
[1735888251612,0.29125,3436.0,3435.7,0.29127]
[1735888251819,0.29126,3435.9,3435.7,0.29127]
[1735888252527,3.2078,3436.3,3435.6,3.46397774]
[1735888253126,0.29124,3436.2,3435.6,3.46397774]
[1735888253423,0.29125,3436.0,3435.7,0.29127]
[1735888253622,0.29125,3436.0,3435.8,0.29126]
[1735888253818,0.29125,3436.0,3435.6,3.46397774]
[1735888253819,3.2078,3436.3,3436.0,0.29125]
[1735888254021,3.2078,3436.3,3436.2,0.29123]
[1735888254224,5.48280813,3436.8,3435.9,2.31097774]
[1735888254519,0.29122,3436.4,3436.3,0.29122]
[1735888254727,0.29122,3436.4,3436.2,0.29123]
[1735888255327,3.2078,3436.4,3435.9,2.31097774]
[1735888255526,0.29124,3436.2,3436.0,0.29125]
[1735888255825,3.2078,3436.4,3435.7,3.2078]
[1735888256022,0.29122,3436.4,3436.2,0.29123]
[1735888256419,0.29122,3436.3,3436.1,0.29124]
[1735888257426,0.29123,3436.2,3436.0,0.29125]
[1735888257923,0.29121,3436.5,3436.3,0.29122]
[1735888258325,0.2912,3436.6,3436.4,0.29121]
[1735888258524,3.2078,3436.8,3436.1,3.2078]
[1735888258826,0.29121,3436.5,3436.3,0.29122]
[1735888260218,40.8,3436.7,3436.1,3.2078]
[1735888260826,0.29123,3436.2,3436.1,1.158]
[1735888263929,43.11097774,3436.7,3436.1,1.158]
[1735888264125,43.11097774,3436.7,3436.1,1.44924]
[1735888264323,0.29123,3436.2,3436.1,1.44924]
[1735888264523,0.29123,3436.3,3436.2,0.29123]
[1735888264731,0.29123,3436.3,3436.1,1.158]
[1735888265132,43.11097774,3436.7,3436.2,0.29123]
[1735888265327,0.29122,3436.3,3436.2,0.29123]
[1735888265528,5.48280813,3436.8,3436.2,0.29123]
[1735888265735,0.29122,3436.4,3436.3,0.29122]
[1735888266230,0.29119,3436.7,3436.5,0.2912]
[1735888266630,44.29899,3436.8,3436.2,0.29123]
[1735888266834,0.29119,3436.7,3436.6,0.2912]
[1735888267233,3.2078,3436.8,3436.2,2.31097774]
[1735888267432,0.29118,3436.8,3436.7,0.29119]
[1735888267936,2.27500813,3437.0,3436.8,0.29118]
[1735888267937,0.29117,3436.9,3436.8,0.29118]
[1735888268135,41.09117,3437.0,3436.9,0.29117]
[1735888268335,40.8,3437.0,3436.3,0.72807]
[1735888268637,41.09117,3437.0,3436.8,0.29118]
[1735888269135,0.29117,3436.9,3436.8,0.29118]
[1735888269336,40.8,3437.0,3436.2,9.14482569]
[1735888269530,0.29118,3436.8,3436.2,9.14482569]
[1735888269734,0.29117,3436.9,3436.2,9.14482569]
[1735888270533,41.09117,3437.0,3436.9,0.29117]
[1735888270737,40.8,3437.0,3436.9,0.29117]
[1735888270940,0.29116,3437.0,3436.9,0.29117]
[1735888271239,2.27500813,3437.4,3437.1,0.29115]
[1735888271240,0.29115,3437.3,3437.1,0.29115]
[1735888271429,41.09115,3437.2,3437.1,0.29115]
[1735888271627,0.29115,3437.3,3436.9,1.158]
[1735888271833,2.56614813,3437.4,3437.2,0.29114]
[1735888272031,40.8,3437.3,3437.2,0.29114]
[1735888272341,41.09114,3437.3,3437.2,0.29114]
[1735888272638,0.29116,3437.1,3436.9,1.44917]
[1735888272834,0.29115,3437.2,3437.0,0.29116]
[1735888273038,0.29115,3437.2,3437.1,0.29116]
[1735888273233,40.8,3437.3,3436.9,1.158]
[1735888273432,0.29115,3437.2,3437.0,0.29116]
[1735888273629,4.58598587,3437.6,3436.9,1.158]
[1735888273835,0.29114,3437.3,3436.9,1.158]
[1735888274132,0.29112,3437.6,3437.4,0.29113]
[1735888274534,0.29112,3437.6,3436.9,4.3658]
[1735888274535,0.29112,3437.6,3437.0,0.29116]
[1735888274744,5.77391813,3437.7,3437.5,0.29112]
[1735888275038,0.29111,3437.6,3437.4,0.29113]
[1735888275641,3.49891,3437.7,3437.5,0.29112]
[1735888276228,0.29111,3437.6,3437.5,0.29112]
[1735888276435,3.49891,3437.7,3437.5,0.29112]
[1735888276839,3.2078,3437.7,3437.6,0.29111]
[1735888277035,3.49891,3437.7,3437.1,2.31097774]
[1735888277234,0.29111,3437.7,3437.5,0.29112]
[1735888277436,41.0911,3437.8,3437.6,0.29111]
[1735888277744,41.0911,3437.8,3437.5,0.29112]
[1735888277745,0.29111,3437.7,3437.5,0.29112]
[1735888277937,0.29111,3437.6,3437.4,0.29112]
[1735888278137,0.29111,3437.6,3437.1,2.31097774]
[1735888278138,40.8,3437.8,3437.1,2.31097774]
[1735888278538,0.29112,3437.6,3437.4,0.29113]
[1735888278940,0.29113,3437.5,3437.3,0.29114]
[1735888279238,40.8,3437.8,3437.2,0.29114]
[1735888279239,0.29111,3437.7,3437.2,0.29114]
[1735888279541,0.29111,3437.7,3437.1,0.29115]
[1735888279542,0.29114,3437.3,3437.1,0.29115]
[1735888279945,0.29116,3437.2,3437.0,0.29116]
[1735888280241,0.29116,3437.2,3437.1,1.158]
[1735888280542,3.2078,3437.7,3437.1,1.158]
[1735888280841,3.2078,3437.7,3437.3,0.29113]
[1735888280842,0.29113,3437.5,3437.3,0.29113]
[1735888281037,0.29113,3437.4,3437.3,0.29113]
[1735888281635,3.2078,3437.7,3437.3,1.158]
[1735888281833,3.49891,3437.7,3437.3,1.158]
[1735888282042,0.29111,3437.6,3437.4,0.29113]
[1735888282544,0.29111,3437.6,3437.3,1.158]
[1735888282747,0.29111,3437.6,3437.4,0.29113]
[1735888283043,40.8,3437.8,3437.3,1.158]
[1735888283346,0.29113,3437.4,3437.3,1.162]
[1735888283742,0.29113,3437.4,3437.3,1.45314]
[1735888284142,3.2078,3437.7,3437.3,1.162]
[1735888284343,3.2078,3437.7,3437.5,0.29112]
[1735888284642,3.49891,3437.7,3437.5,0.29112]
[1735888285037,3.2078,3437.7,3437.6,0.29111]
[1735888286041,3.2078,3437.7,3437.3,1.162]
[1735888286249,0.29111,3437.6,3437.5,0.29112]
[1735888286836,3.2078,3437.7,3437.5,0.29112]
[1735888287040,3.2078,3437.7,3437.3,1.162]
[1735888287041,3.2078,3437.7,3437.6,0.29111]
[1735888287746,3.49891,3437.7,3437.6,0.29111]
[1735888288548,3.2078,3437.7,3437.3,1.162]
[1735888288747,3.49891,3437.7,3437.5,0.29111]
[1735888289144,3.49891,3437.7,3437.3,1.162]
[1735888289344,3.49891,3437.7,3437.6,0.29111]
[1735888289647,3.2078,3437.7,3437.3,1.162]
[1735888289850,0.29112,3437.6,3437.4,0.29112]
[1735888290048,0.29112,3437.6,3437.5,0.29112]
[1735888290448,0.29113,3437.5,3437.3,1.45313]
[1735888291046,3.2078,3437.7,3437.3,1.162]
[1735888291252,0.29112,3437.6,3437.4,0.29112]
[1735888291752,0.29112,3437.5,3437.4,0.29112]
[1735888292146,0.29113,3437.4,3437.3,1.45314]
[1735888293351,0.29113,3437.4,3437.3,1.162]
[1735888293951,0.29113,3437.4,3437.3,1.45314]
[1735888294555,0.29112,3437.6,3437.5,0.29112]
[1735888296047,0.29112,3437.6,3437.3,1.162]
[1735888296243,3.2078,3437.7,3437.4,0.29113]
[1735888296447,3.2078,3437.7,3437.3,1.45313]
[1735888296958,3.2078,3437.7,3437.4,0.29113]
[1735888297254,0.29113,3437.5,3437.4,0.29113]
[1735888297956,0.29112,3437.6,3437.4,0.29113]
[1735888298149,3.2078,3437.7,3437.4,0.29113]
[1735888298349,0.29112,3437.5,3437.4,0.29113]
[1735888298954,3.2078,3437.7,3437.2,1.162]
[1735888299154,3.49891,3437.7,3437.5,0.29111]
[1735888299359,3.2078,3437.7,3437.6,0.29111]
[1735888299559,3.2078,3438.1,3437.3,5.51877774]
[1735888299858,0.29109,3437.9,3437.7,0.2911]
[1735888300356,0.29109,3437.9,3437.3,3.2078]
[1735888300357,0.2911,3437.8,3437.3,3.2078]
[1735888300560,3.2078,3438.1,3437.6,0.29111]
[1735888300857,0.2911,3437.8,3437.6,0.29111]
[1735888301058,0.29111,3437.7,3437.6,0.29111]
[1735888301358,0.29109,3437.9,3437.8,0.29109]
[1735888301660,0.29108,3438.0,3437.9,0.29109]
[1735888303059,3.2078,3438.1,3437.3,5.51877774]
[1735888303362,0.29108,3438.0,3437.9,0.29108]
[1735888304057,3.2078,3438.1,3437.3,5.51877774]
[1735888304262,0.29108,3438.0,3437.8,0.29109]
[1735888304456,3.2078,3438.1,3437.6,2.31097774]
[1735888304656,3.2078,3438.1,3438.0,0.29108]
[1735888305654,3.2078,3438.1,3437.8,1.162]
[1735888305958,3.49888,3438.1,3437.9,0.29108]
[1735888306560,3.49888,3438.1,3438.0,0.29108]
[1735888306756,0.29108,3438.0,3437.9,0.29108]
[1735888308363,3.2078,3438.1,3437.8,1.162]
[1735888308558,3.2078,3438.1,3438.0,0.29108]
[1735888308760,3.49887,3438.1,3438.0,0.29108]
[1735888309057,3.2078,3438.1,3438.0,0.29108]
[1735888309465,0.29106,3438.3,3438.2,0.29106]
[1735888309662,40.8,3438.4,3437.8,1.162]
[1735888309868,0.29107,3438.2,3438.1,0.29107]
[1735888310159,0.29106,3438.3,3438.1,0.29107]
[1735888310465,0.29106,3438.3,3438.2,0.29106]
[1735888312364,0.29107,3438.2,3438.1,0.29107]
[1735888313268,43.07500813,3438.5,3437.8,5.72594844]
[1735888313471,0.29108,3438.0,3437.9,4.85502844]
[1735888313666,2.31097774,3438.2,3437.9,4.56394844]
[1735888313875,0.29108,3438.0,3437.9,4.56394844]
[1735888314757,5.51877774,3438.2,3437.8,4.56394844]
[1735888314963,0.29109,3437.9,3437.8,4.56394844]
[1735888315863,3.2078,3438.2,3437.8,4.56394844]
[1735888316069,3.2078,3438.2,3437.9,0.29108]
[1735888316070,0.29108,3438.1,3437.9,0.29108]
[1735888316270,0.29108,3438.1,3438.0,0.29108]
[1735888317364,3.41251219,3438.4,3438.1,0.29107]
[1735888317365,2.27500813,3438.3,3438.1,0.29107]
[1735888317566,2.56606813,3438.3,3438.1,0.29107]
[1735888318075,2.27500813,3438.3,3437.9,4.56394844]
[1735888318366,2.27500813,3438.3,3438.2,0.29106]
[1735888321074,0.29105,3438.4,3438.2,4.81098388]
[1735888322276,0.29105,3438.4,3438.2,4.86727217]
[1735888322576,0.29105,3438.3,3438.2,4.86727217]
[1735888323075,0.29105,3438.3,3438.2,4.57621217]
[1735888323567,0.29105,3438.3,3438.1,4.86728217]
[1735888324171,0.29105,3438.3,3438.2,0.29106]
[1735888325274,0.29106,3438.2,3438.1,4.86728217]
[1735888325974,0.29106,3438.3,3438.1,4.57621217]
[1735888326275,0.29106,3438.3,3438.2,0.29106]
[1735888326865,2.27500813,3438.4,3438.2,0.29106]
[1735888327068,2.27500813,3438.4,3438.3,3.75502774]
[1735888327776,3.41251219,3438.5,3438.4,0.29105]
[1735888327967,3.41251219,3438.5,3438.4,3.49885]
[1735888328169,3.41251219,3439.0,3438.9,0.291]
[1735888328774,3.41251219,3439.0,3438.9,5.80977774]
[1735888329071,3.10002032,3439.0,3438.9,10.80977774]
[1735888329269,1.05972032,3439.0,3438.9,10.80977774]
[1735888329475,0.19572032,3439.8,3438.9,15.03711203]
[1735888329780,0.19572032,3439.8,3439.7,0.29094]
[1735888329971,0.19572032,3439.8,3439.7,1.44394]
[1735888331072,3.2e-07,3439.8,3439.7,6.44394]
[1735888331273,4.50290751,3440.8,3439.7,6.153]
[1735888331473,45.30290751,3440.8,3440.7,0.29085]
[1735888332078,4.50290751,3440.8,3440.6,0.29086]
[1735888332381,4.50290751,3440.8,3440.5,1.44387]
[1735888332985,0.29084,3440.9,3440.5,1.153]
[1735888333472,0.29084,3440.9,3440.5,1.44387]
[1735888333875,43.11097774,3441.2,3440.5,1.153]
[1735888334082,0.29084,3440.9,3440.5,1.44387]
[1735888334580,0.29083,3441.0,3440.6,0.29086]
[1735888334879,43.11097774,3441.2,3440.3,3.2078]
[1735888335178,0.29086,3440.6,3440.5,1.153]
[1735888336280,0.29085,3440.7,3440.5,1.153]
[1735888336578,0.29085,3440.7,3440.1,2.31097774]
[1735888336579,3.2078,3440.8,3440.1,2.31097774]
[1735888336778,3.49865,3440.8,3440.3,0.29088]
[1735888336975,3.2078,3440.8,3440.3,0.29088]
[1735888337175,3.2078,3440.8,3440.4,0.29087]
[1735888337176,3.49865,3440.8,3440.4,0.29087]
[1735888337679,0.29085,3440.7,3440.3,0.29088]
[1735888338079,3.2078,3440.8,3440.2,1.152]
[1735888338379,3.49865,3440.8,3440.4,0.29088]
[1735888339483,3.2078,3440.8,3440.2,1.152]
[1735888339683,0.29082,3441.1,3440.7,0.29085]
[1735888339981,46.31877774,3441.2,3440.2,1.152]
[1735888340176,0.29086,3440.7,3440.3,0.29088]
[1735888340383,0.29084,3440.9,3440.5,0.29086]
[1735888340885,0.29082,3441.1,3440.7,0.29085]
[1735888341074,0.29082,3441.1,3440.3,3.2078]
[1735888341283,46.31877774,3441.2,3440.3,3.2078]
[1735888341576,46.31877774,3441.2,3440.6,0.29086]
[1735888341882,0.29083,3441.0,3440.6,0.29086]
[1735888342181,46.31877774,3441.2,3440.2,1.152]
[1735888342386,2.31097774,3440.9,3440.3,0.29088]
[1735888342579,0.29087,3440.6,3440.3,0.29089]
[1735888342775,0.29087,3440.6,3440.2,1.151]
[1735888342982,0.29087,3440.6,3440.1,1.151]
[1735888343184,0.29087,3440.6,3440.2,0.29089]
[1735888343387,0.29087,3440.6,3440.3,0.29088]
[1735888343682,0.29087,3440.6,3440.1,1.151]
[1735888343980,2.31097774,3440.9,3440.1,1.151]
[1735888344184,2.31097774,3440.3,3439.9,3.2078]
[1735888344385,0.29091,3440.0,3439.9,3.2078]
[1735888344787,41.09091,3440.0,3439.9,3.2078]
[1735888344975,5.51877774,3440.0,3439.1,4.56706534]
[1735888345281,3.2078,3439.2,3439.1,4.56706534]
[1735888345477,2.31097774,3439.5,3439.0,1.151]
[1735888345678,2.60193774,3439.5,3439.2,0.29098]
[1735888345881,0.29096,3439.4,3439.1,0.29098]
[1735888346271,0.29096,3439.5,3439.2,0.29098]
[1735888346478,3.2078,3439.6,3439.2,0.29098]
[1735888346677,0.29096,3439.4,3439.2,0.29098]
[1735888346877,0.29096,3439.5,3439.2,0.29098]
[1735888347582,0.29096,3439.4,3439.2,0.29098]
[1735888348579,3.2078,3439.6,3439.2,0.29098]
[1735888348777,0.29096,3439.5,3439.2,0.29098]
[1735888349680,0.29097,3439.4,3439.1,0.29098]
[1735888350079,0.29097,3439.4,3439.0,1.151]
[1735888350281,0.29097,3439.4,3439.2,0.29098]
[1735888350577,0.29096,3439.5,3439.2,0.29098]
[1735888350783,3.2078,3439.6,3439.0,1.151]
[1735888351082,3.2078,3439.6,3439.5,0.29095]
[1735888353990,3.2078,3440.1,3439.2,2.31097774]
[1735888354195,3.2078,3440.1,3439.9,0.29091]
[1735888354384,3.4987,3440.1,3439.9,0.29091]
[1735888354987,0.29092,3440.0,3439.7,1.44193]
[1735888355384,0.29092,3439.9,3439.7,1.44193]
[1735888355578,0.29092,3439.9,3439.7,1.151]